[Event "Slovakian-ch Youth 2022"]
[Site "Lubovna"]
[Date "2022.05.24"]
[Round "5.35"]
[White "Stavac Teodor"]
[Black "Krajci Hugo"]
[Result "0-1"]
[ECO "C68"]
[WhiteElo "1000"]
[BlackElo "1178"]
[Annotator "NA RC COMBH"]
[PlyCount "119"]
[EventDate "2022.05.22"]
[EventCountry "SVK"]
[SourceTitle "playchess.com"]
[Source "ChessBase"]
[SourceQuality "1"]
[TimeControl "40/5400+30:1800+30"]

1. e4 {[%emt 0:00:00]} e5 {[%emt 0:00:00]} 2. Nf3 {[%emt 0:00:00]} Nc6 {[%emt 0:00:00]} 3. Bb5 {[%emt 0:00:05]} a6 {[%emt 0:00:00]} 4. Bxc6 {[%emt 0:00:33]} dxc6 {[%emt 0:00:00]} 5. d4 {[%emt 0:00:33]} exd4 {[%emt 0:00:21]} 6. O-O {[%emt 0:00:39]} Bg4 {[%emt 0:00:14]} 7. Bf4 {[%emt 0:00:17]} Bxf3 {[%emt 0:00:52]} 8. Qxf3 {[%emt 0:00:12]} Bd6 {[%emt 0:00:27]} 9. e5 {[%emt 0:01:24]} Bc5 {[%emt 0:01:10]} 10. Re1 {[%emt 0:00:40]} Ne7 {[%emt 0:01:15]} 11. e6 {[%emt 0:02:11]} O-O {[%emt 0:00:23]} 12. Nd2 {[%emt 0:01:10]} fxe6 {[%emt 0:00:57]} 13. Rxe6 {[%emt 0:03:38]} Bd6 {[%emt 0:00:05]} 14. Re4 {[%emt 0:00:47]} Ng6 {[%emt 0:00:40]} 15. g3 {[%emt 0:01:00]} Rf6 {[%emt 0:00:53]} 16. Rae1 {[%emt 0:01:16]} Qf8 {[%emt 0:00:13]} 17. Qb3+ {[%emt 0:01:42]} Kh8 {[%emt 0:01:01]} 18. Bxd6 {[%emt 0:00:51]} cxd6 {[%emt 0:00:35]} 19. R4e2 {[%emt 0:01:19]} b5 {[%emt 0:01:13]} 20. Ne4 {[%emt 0:04:05]} Re8 {[%emt 0:01:41]} 21. Rf1 {[%emt 0:02:16]} Rfe6 {[%emt 0:01:23]} 22. Qd3 {[%emt 0:01:15]} d5 {[%emt 0:00:32]} 23. f3 {[%emt 0:03:33]} dxe4 {[%emt 0:02:06]} 24. fxe4 {[%emt 0:00:25]} Qe7 {[%emt 0:00:25]} 25. Rfe1 {[%emt 0:01:11]} c5 {[%emt 0:01:11]} 26. b3 {[%emt 0:02:42]} h6 {[%emt 0:00:26]} 27. b4 {[%emt 0:00:37]} cxb4 {[%emt 0:00:49]} 28. Qxd4 {[%emt 0:00:39]} Ne5 {[%emt 0:00:33]} 29. Kg2 {[%emt 0:03:00]} Nc6 {[%emt 0:00:55]} 30. Qd5 {[%emt 0:04:31]} Qd8 {[%emt 0:01:33]} 31. Qf5 {[%emt 0:04:16]} Qf6 {[%emt 0:00:45]} 32. Qd5 {[%emt 0:02:10]} Qe5 {[%emt 0:01:22]} 33. Qd3 {[%emt 0:00:32]} R8e7 {[%emt 0:01:01]} 34. Rf2 {[%emt 0:02:53]} Qb8 {[%emt 0:01:18]} 35. h3 {[%emt 0:02:27]} Qe8 {[%emt 0:02:41]} 36. Rf4 {[%emt 0:04:27]} Ne5 {[%emt 0:00:21]} 37. Qd5 {[%emt 0:00:56]} Ng6 {[%emt 0:00:49]} 38. Rg4 {[%emt 0:01:25]} Ne5 {[%emt 0:00:32]} 39. Rh4 {[%emt 0:01:58]} Qf8 {[%emt 0:02:02]} 40. Rf4 {[%emt 0:00:51]} Qe8 {[%emt 0:00:51]} 41. Rf2 {[%emt 0:33:36]} Rd7 {[%emt 0:30:30]} 42. Qb3 {[%emt 0:01:49]} a5 {[%emt 0:00:42]} 43. Rfe2 {[%emt 0:01:40]} Rde7 {[%emt 0:00:34]} 44. Qd5 {[%emt 0:02:41]} Nc4 {[%emt 0:00:23]} 45. Qd3 {[%emt 0:01:26]} Nd6 {[%emt 0:00:09]} 46. Kf3 {[%emt 0:04:34]} g5 {[%emt 0:01:07]} 47. g4 {[%emt 0:00:13]} Rf7+ {[%emt 0:00:52]} 48. Kg3 {[%emt 0:04:54]} Rf4 {[%emt 0:00:31]} 49. e5 {[%emt 0:02:23]} Nc4 {[%emt 0:00:52]} 50. Qd5 {[%emt 0:01:15]} Rf7 {[%emt 0:00:32]} 51. Qg2 {[%emt 0:04:55]} Rxe5 {[%emt 0:00:58]} 52. Rxe5 {[%emt 0:00:14]} Nxe5 {[%emt 0:00:13]} 53. Qe4 {[%emt 0:01:21]} Re7 {[%emt 0:01:02]} 54. Qd4 {[%emt 0:00:44]} Kg8 {[%emt 0:00:53]} 55. Qd5+ {[%emt 0:00:25]} Qf7 {[%emt 0:01:16]} 56. Qd8+ {[%emt 0:00:48]} Re8 {[%emt 0:00:54]} 57. Rxe5 {[%emt 0:01:44]} Rxd8 {[%emt 0:00:30]} 58. Rxb5 {[%emt 0:00:30]} Qf4+ {[%emt 0:00:57]} 59. Kg2 {[%emt 0:01:23]} Rd2+ {[%emt 0:00:22]} 60. Kh1 {[%emt 0:04:23]} 0-1

[Event "Slovakian-ch Youth 2022"]
[Site "Lubovna"]
[Date "2022.05.24"]
[Round "5.36"]
[White "Kriska Alexander"]
[Black "Slivka Martin"]
[Result "1/2-1/2"]
[ECO "D02"]
[WhiteElo "1046"]
[BlackElo "1000"]
[Annotator "NA RC COMBH"]
[PlyCount "49"]
[EventDate "2022.05.22"]
[EventCountry "SVK"]
[SourceTitle "playchess.com"]
[Source "ChessBase"]
[SourceQuality "1"]
[TimeControl "40/5400+30:1800+30"]

1. d4 {[%emt 0:00:25]} d5 {[%emt 0:00:15]} 2. Nf3 {[%emt 0:00:19]} Nc6 {[%emt 0:00:38]} 3. Bf4 {[%emt 0:00:45]} Bd7 {[%emt 0:02:09]} 4. e3 {[%emt 0:02:24]} e6 {[%emt 0:00:51]} 5. Be2 {[%emt 0:02:15]} Bd6 {[%emt 0:00:59]} 6. Bxd6 {[%emt 0:05:30]} cxd6 {[%emt 0:00:14]} 7. Nbd2 {[%emt 0:01:44]} Nf6 {[%emt 0:00:44]} 8. O-O {[%emt 0:01:15]} O-O {[%emt 0:01:04]} 9. c3 {[%emt 0:04:13]} Ne7 {[%emt 0:01:18]} 10. Qc2 {[%emt 0:01:09]} Ng6 {[%emt 0:00:37]} 11. h3 {[%emt 0:00:31]} a6 {[%emt 0:02:08]} 12. Rfe1 {[%emt 0:06:23]} Bb5 {[%emt 0:03:03]} 13. Bd3 {[%emt 0:06:27]} Bxd3 {[%emt 0:01:28]} 14. Qxd3 {[%emt 0:00:21]} Re8 {[%emt 0:01:22]} 15. Nf1 {[%emt 0:02:33]} e5 {[%emt 0:02:31]} 16. N3h2 {[%emt 0:04:28]} e4 {[%emt 0:00:54]} 17. Qe2 {[%emt 0:00:43]} Qb6 {[%emt 0:03:18]} 18. Rab1 {[%emt 0:02:00]} Qb5 {[%emt 0:01:20]} 19. Qd1 {[%emt 0:02:23]} Rac8 {[%emt 0:05:16]} 20. Ng4 {[%emt 0:01:50]} Nxg4 {[%emt 0:01:31]} 21. Qxg4 {[%emt 0:03:53]} h6 {[%emt 0:01:05]} 22. Qg3 {[%emt 0:03:39]} Qd7 {[%emt 0:01:29]} 23. Nh2 {[%emt 0:05:56]} Qf5 {[%emt 0:01:36]} 24. Qg4 {[%emt 0:04:20]} Qxg4 {[%emt 0:00:24]} 25. Nxg4 {[%emt 0:00:28]} 1/2-1/2

[Event "Slovakian-ch Youth 2022"]
[Site "Lubovna"]
[Date "2022.05.25"]
[Round "6.1"]
[White "Vargosko, Juraj"]
[Black "Elias, David"]
[Result "1/2-1/2"]
[ECO "E81"]
[WhiteElo "1640"]
[BlackElo "1901"]
[Annotator "TA"]
[PlyCount "111"]
[EventDate "2022.05.22"]
[EventCountry "SVK"]
[SourceTitle "playchess.com"]
[Source "ChessBase"]
[SourceQuality "1"]
[TimeControl "40/5400+30:1800+30"]

{[%evp 11,111,34,58,46,44,47,82,62,74,37,68,64,87,47,104,93,113,101,131,85,71,79,101,72,190,144,152,111,110,0,139,79,337,340,347,350,343,312,321,308,306,290,284,279,276,276,278,262,499,301,296,294,389,389,339,354,369,363,472,463,412,314,358,264,254,250,231,211,382,382,382,382,382,382,382,382,382,382,381,374,364,298,424,424,396,241,241,234,234,234,234,10,10,8,8,8,8,0,0,0,0,0]} 1. d4 {[%emt 0:00:06]} Nf6 {[%emt 0:00:05]} 2. c4 {[%emt 0:00:06]} g6 {[%emt 0:00:12]} 3. Nc3 {[%emt 0:00:46]} Bg7 {[%emt 0:00:08]} 4. e4 {[%emt 0:00:21]} d6 {[%emt 0:00:07]} 5. f3 {[%emt 0:01:58]} (5. Nf3 O-O 6. Be2 e5 7. dxe5 dxe5 8. Qxd8 Rxd8 9. Bg5 Re8 10. Nd5 Nxd5 11. cxd5 c6 12. Bc4 b5 13. Bb3 a5 14. a4 bxa4 15. Bxa4 Bd7 16. dxc6 Bxc6 17. Ke2 Bxa4 18. Rxa4 Nc6 19. Rc1 Nd4+ 20. Kf1 Rab8 21. Rb1 Rb5 22. Nxd4 exd4) 5... O-O {[%emt 0:00:22]} 6. Be3 {[%emt 0:01:38]} Na6 {[%emt 0:06:14]} 7. Bd3 {[%emt 0:06:21] E81: King's Indian: Sämisch: 6th move deviations (including 6 Be3 c6).} c5 {[%emt 0:06:44][%cal Of6g4] [#] And now ...Ng4! would win.} 8. Nge2 {[%emt 0:07:43]} Bd7 {[%emt 0:08:49] [#]} 9. Rb1 $146 {[%emt 0:01:52] White is better.} ({Predecessor:} 9. O-O Rc8 10. d5 Nc7 11. a4 Rb8 12. g4 a6 13. a5 b5 14. axb6 Rxb6 15. b3 {1-0 (39) Mochalin,F (2138)-Ivanov,M (1872) Cheliabinsk 2021}) 9... Qa5 {[%emt 0:06:58]} 10. O-O {[%emt 0:10:41]} cxd4 {[%emt 0:05:20]} 11. Nxd4 {[%emt 0:01:58]} Rfc8 {[%emt 0:05:07]} 12. a3 {[%emt 0:03:59]} Qh5 {[%emt 0:02:28]} (12... Nc5 $14) 13. b4 $16 {[%emt 0:06:59]} Nc7 {[%emt 0:04:48]} 14. Qd2 {[%emt 0:07:32]} Ne6 {[%emt 0:00:52]} 15. Nce2 {[%emt 0:13:13]} (15. Nde2 $142) 15... Nxd4 {[%emt 0:04:59]} 16. Nxd4 {[%emt 0:15:24]} a6 {[%emt 0:16:28]} 17. Rfc1 {[%emt 0:02:43]} g5 {[%emt 0:11:21]} (17... Ne8 $16 {is a better defense.}) 18. Ne2 {[%emt 0:04:41]} ({White should try} 18. g4 $18 Bxg4 19. fxg4 Nxg4 20. Nf5) 18... h6 {[%emt 0:03:52]} 19. Ng3 {[%emt 0:02:39]} Qh4 {[%emt 0:00:15]} 20. Ne2 {[%emt 0:05:04]} (20. c5 $16) 20... e5 {[%emt 0:03:47]} (20... Qh5 $1 $11) 21. g4 {[%emt 0:03:09]} (21. h3 $142) 21... Bxg4 $2 {[%emt 0:03:06][%mdl 8192]} 22. fxg4 $18 {[%emt 0:00:08]} Qxg4+ {[%emt 0:00:16]} 23. Ng3 {[%emt 0:00:20]} b5 {[%emt 0:02:02]} 24. c5 {[%emt 0:01:34]} (24. cxb5 axb5 25. Rxc8+ Rxc8) 24... dxc5 {[%emt 0:01:36]} 25. Rxc5 {[%emt 0:00:07]} (25. Bxc5 Rc7 26. Be2 Qh3) 25... Rd8 {[%emt 0:00:57][%cal Of6e4]} 26. Qe2 {[%emt 0:01:19]} (26. Rxe5 $6 Nh5 27. Re8+ (27. Be2 Qxg3+ 28. hxg3 Rxd2 $14) 27... Rxe8 $16) 26... h5 {[%emt 0:01:20]} 27. Rc3 {Threatens to win with Qg2.} ({Resist} 27. Rxe5 h4 $18) 27... h4 {[%emt 0:00:20]} 28. Qxg4 {[%emt 0:00:26]} Nxg4 {[%emt 0:00:04]} 29. Nf5 {[%emt 0:00:33][%cal Bg3f5,Bf5e3,Be3d5][%mdl 32]} (29. Bxg5 hxg3 30. Bxd8 (30. hxg3 Bf6 $11) 30... gxh2+ 31. Kh1 Rxd8 $16) 29... Bf6 {[%emt 0:01:23]} (29... Nxe3 30. Nxe3 Rac8 31. Rxc8 Rxc8) 30. h3 {[%emt 0:00:02]} Nxe3 {[%emt 0:00:14]} 31. Nxe3 {[%emt 0:00:03]} Rac8 {[%emt 0:01:54]} 32. Rxc8 {[%emt 0:00:07]} Rxc8 {[%emt 0:00:07]} 33. Nd5 {[%emt 0:00:02] Against Rc3} Bd8 {[%emt 0:00:24]} 34. Kg2 {[%emt 0:00:06]} f6 {[%emt 0:00:30]} 35. Kf3 {[%emt 0:00:21]} Kf7 {[%emt 0:00:07]} 36. Ke3 {[%emt 0:01:01]} Ke6 {[%emt 0:00:59]} 37. Kd2 {[%emt 0:01:15]} f5 {[%emt 0:02:08]} 38. Ne3 {[%emt 0:01:09]} f4 {[%emt 0:00:25]} 39. Ng4 {[%emt 0:00:45]} Be7 $2 {[%emt 0:00:57]} (39... Bb6 {might work better.} 40. Rb2 Kd6) 40. Rc1 {[%emt 0:00:30]} Rxc1 {[%emt 0:00:12]} 41. Kxc1 {[%emt 0:30:05]} Bd6 {[%emt 0:31:13]} 42. Kd1 {[%emt 0:00:00]} Kd7 {[%emt 0:00:00]} 43. Kc2 {[%emt 0:00:00]} Kc6 {[%emt 0:00:00]} 44. Kb3 {[%emt 0:00:00]} Kb6 {[%emt 0:00:00]} 45. Be2 {[%emt 0:00:00]} Bc7 {[%emt 0:00:00]} 46. Nf2 {[%emt 0:00:00]} a5 {[%emt 0:00:00]} (46... Kc6 $142 47. a4 Bb6) 47. a4 {[%emt 0:00:00]} axb4 {[%emt 0:00:00]} 48. axb5 {[%emt 0:00:00]} Kc5 {[%emt 0:00:00]} 49. Ng4 {[%emt 0:01:42]} Kd4 {[%emt 0:00:00]} 50. Bf3 {[%emt 0:00:49]} ({Weaker is} 50. Kxb4 Kxe4 51. Kc4 f3 52. Bd3+ Kf4 $16) 50... Kc5 {[%emt 0:00:00] [#]} 51. Nh6 $2 {[%emt 0:02:04]} (51. b6 $1 $18 {[%cal Rb6c7]} Bxb6 52. Nxe5) 51... Kxb5 $11 {[%emt 0:00:00] The position is equal.} 52. Nf7 {[%emt 0:00:15]} Kc5 {[%emt 0:00:00]} 53. Nxg5 {[%emt 0:00:23] Ne6+ is the strong threat.} Kd4 $1 {[%emt 0:00:00]} 54. Bg2 {[%emt 0:02:00] aiming for Ne6+.} Ke3 {[%emt 0:00:00]} 55. Kxb4 {[%emt 0:01:09]} Bd8 {[%emt 0:00:00]} (55... Kf2 $5 56. Bh1 Kg3 $14) 56. Nf3 {[%emt 0:00:21] Weighted Error Value: White=0.35/Black=0.38} 1/2-1/2

[Event "Slovakian-ch Youth 2022"]
[Site "Lubovna"]
[Date "2022.05.25"]
[Round "6.2"]
[White "Zetocha, Adrian"]
[Black "Bochnicka, Vladimir"]
[Result "1-0"]
[ECO "E94"]
[WhiteElo "2331"]
[BlackElo "2267"]
[Annotator "TA"]
[PlyCount "135"]
[EventDate "2022.05.22"]
[EventCountry "SVK"]
[SourceTitle "playchess.com"]
[Source "ChessBase"]
[SourceQuality "1"]
[TimeControl "40/5400+30:1800+30"]

{[%evp 18,135,64,64,87,66,71,56,58,42,35,33,39,39,39,33,33,46,52,53,66,53,51,46,93,109,195,185,182,186,161,117,204,204,205,199,214,212,246,241,384,358,376,340,378,260,390,257,250,261,241,180,262,224,262,110,106,41,45,44,39,17,38,40,46,22,19,39,211,207,216,346,351,334,772,359,765,486,1110,1047,1466,1441,1472,1436,1196,1108,12837,6145,29984,12841,29978,29979,29979,12845,29980,29981,29979,29980,6141,6145,5025,6145,1856,1586,1484,2060,12841,8381,1312,1575,12845,12845,12845,12846,29995,29990,29994,12845,12845,12837]} 1. d4 {[%emt 0:01:58]} Nf6 {[%emt 0:00:08]} 2. c4 {[%emt 0:01:16]} g6 {[%emt 0:00:07]} 3. Nc3 {[%emt 0:00:33]} Bg7 {[%emt 0:00:07]} 4. e4 {[%emt 0:00:27]} d6 {[%emt 0:00:10]} 5. Nf3 {[%emt 0:00:24]} O-O {[%emt 0:00:21]} 6. Be2 {[%emt 0:00:14]} Nbd7 {[%emt 0:01:20]} 7. O-O {[%emt 0:00:17]} e5 {[%emt 0:00:16]} 8. Qc2 {[%emt 0:01:29]} Qe7 {[%emt 0:03:42]} 9. Be3 {[%emt 0:13:50]} c6 {[%emt 0:13:30]} 10. d5 {[%emt 0:19:28]} c5 {[%emt 0:03:16] E94: King's Indian: Classical: 6 Be2 e5 7 0-0: Various Black 7th moves.} 11. Nd2 {[%emt 0:05:03] White is more active.} Ne8 {[%emt 0:24:41] [#]} 12. Bd3 $146 {[%emt 0:01:20]} ({Predecessor:} 12. Rae1 Nc7 13. a3 b6 14. b4 Bf6 15. Nb5 Nxb5 16. cxb5 Bg5 17. Bxg5 Qxg5 18. Nc4 {½-½ (83) Enchev,I (2408)-Lin,C (2468) Albena 2015}) 12... Ndf6 {[%emt 0:00:35] White is slightly better.} 13. Bg5 {[%emt 0:10:11]} h6 {[%emt 0:08:51]} 14. Bh4 {[%emt 0:00:33]} g5 {[%emt 0:00:16]} 15. Bg3 {[%emt 0:00:06]} Nh5 {[%emt 0:00:28]} 16. Nd1 {[%emt 0:06:48][%cal Bc3d1,Bd1e3,Be3f5][%mdl 32]} Nf4 {[%emt 0:01:04]} 17. Ne3 {[%emt 0:00:12]} Qf6 {[%emt 0:00:47]} 18. f3 {[%emt 0:03:05]} h5 {[%emt 0:03:25]} 19. Be1 {[%emt 0:04:33]} Bh6 {[%emt 0:12:20]} 20. g3 {[%emt 0:04:21]} Nh3+ {[%emt 0:05:24]} (20... Nxd3 $14 21. Qxd3 Bh3) 21. Kg2 $16 {[%emt 0:00:32]} Qg7 {[%emt 0:04:42]} (21... Kh8 $16) 22. Nf5 $18 {[%emt 0:02:06]} Bxf5 {[%emt 0:00:04]} 23. exf5 {[%emt 0:00:09]} g4 {[%emt 0:00:26]} 24. Ne4 {[%emt 0:06:51][%cal Of5f6] Strongly threatening f6!} Nf6 {[%emt 0:04:06]} (24... Ng5 $16) 25. Nxf6+ {[%emt 0:06:04]} (25. Nxd6 gxf3+ 26. Rxf3 Nf4+ 27. Kg1 Qg4) 25... Qxf6 {[%emt 0:00:05]} 26. fxg4 {[%emt 0:00:11]} hxg4 {[%emt 0:02:15]} 27. Be2 {[%emt 0:00:31]} Qg5 {[%emt 0:05:31]} 28. Qe4 {[%emt 0:00:32] aiming for f6.} f6 {[%emt 0:00:25]} (28... Kh8 $142 29. Qxg4 Qxg4 30. Bxg4 Ng5) 29. Bxg4 {[%emt 0:04:12]} Nf4+ {[%emt 0:00:06]} 30. Kf3 {[%emt 0:00:15]} Nd3 {[%emt 0:01:27]} 31. Bc3 {[%emt 0:03:54]} b5 {[%emt 0:00:05]} (31... Nb4 {is a better defense.} 32. h4 Qg7) 32. cxb5 {[%emt 0:01:10]} (32. h4 Qg7 33. cxb5 (33. Qxd3 e4+ 34. Qxe4 Rae8 $18) 33... c4 34. Qxc4 Rfe8 $18) 32... c4 {[%emt 0:00:24]} 33. h4 {[%emt 0:01:02]} (33. Kg2 Rac8 34. Be2 Nf4+ 35. Kh1 Nxe2) 33... Qg7 {[%emt 0:00:06]} 34. Bh5 {[%emt 0:00:22]} Qc7 {[%emt 0:00:59]} (34... Rfc8 $142 35. a4 Rab8) 35. Qg4+ {[%emt 0:02:15]} Bg7 {[%emt 0:00:06]} 36. Bg6 {[%emt 0:00:19]} (36. a4 $18 {has better winning chances.}) 36... Qc5 {[%emt 0:00:44]} 37. a4 {[%emt 0:01:39]} (37. Qe4 $16) 37... Qxd5+ $14 {[%emt 0:00:42]} (37... Bh6 38. Kg2 $16) 38. Qe4 {[%emt 0:00:25] Really sharp!} Qxe4+ {[%emt 0:01:47]} 39. Kxe4 {[%emt 0:00:06][%cal Bf3e4,Be4d5,Bd5e6,Be6e7][%mdl 32]} Rfd8 {[%emt 0:00:10]} 40. Kd5 $1 {[%emt 0:01:11]} Rac8 {[%emt 0:00:42]} 41. Rad1 {[%emt 0:15:09]} Rc5+ {[%emt 0:11:38]} 42. Ke6 $1 {[%emt 0:00:13]} (42. Ke4 d5+ 43. Kf3 e4+ 44. Kg2 d4 $17) 42... e4 $2 {[%emt 0:03:43] [#] This costs Black the game.} (42... d5 $14) 43. Bd4 $1 $18 {[%emt 0:05:31] A strong pair of Bishops.} (43. Bxf6 Bxf6 44. Kxf6 Rf8+ 45. Kg5 e3 $11) 43... Re5+ {[%emt 0:14:11]} (43... Rc7 $142) 44. Bxe5 {[%emt 0:00:15]} dxe5 {[%emt 0:00:07]} 45. Ke7 {[%emt 0:00:28]} Rd4 $2 {[%emt 0:00:15]} (45... Rc8 46. Bf7+ Kh7 47. Bg6+ Kh6) 46. a5 {[%emt 0:05:57]} (46. Bf7+ $142 Kh7 47. a5) 46... e3 $2 {[%emt 0:01:02]} (46... Bf8+ 47. Kxf6 Rd6+ 48. Kg5 e3) 47. b6 {[%emt 0:00:41]} axb6 {[%emt 0:00:33]} (47... Bf8+ $142 48. Ke8 (48. Kxf6 Rd6+ 49. Kg5 e2 $16) 48... Bc5) 48. a6 {[%emt 0:00:58] a7 is the strong threat.} Nb4 {[%emt 0:02:19]} 49. Rxd4 {[%emt 0:00:42]} exd4 {[%emt 0:00:06][%mdl 4096] Endgame KRB-KBN} 50. Bf7+ {[%emt 0:00:20]} Kh7 {[%emt 0:00:26]} 51. Bxc4 {[%emt 0:00:13] Threatens to win with Kd7.} Bh6 {[%emt 0:01:02]} 52. Kd7 {[%emt 0:01:01]} b5 {[%emt 0:00:42]} 53. Bxb5 {[%emt 0:00:35]} (53. a7 $142 bxc4 54. a8=Q e2 55. Re1 Nd3 56. Rxe2 Be3 57. Qe8 Kg7 58. Ke6) 53... d3 {[%emt 0:00:36]} 54. a7 {[%emt 0:01:03]} e2 {[%emt 0:00:21]} 55. Ra1 {[%emt 0:03:27]} Bc1 {[%emt 0:00:30]} 56. a8=Q {[%emt 0:00:30]} ({Weaker is} 56. Rxc1 d2 57. a8=Q dxc1=Q 58. Bxe2 Qd2+ 59. Ke7 Qe3+ 60. Kxf6 Qd4+ 61. Ke6 (61. Kf7 Qd7+ 62. Kf6 Qd6+ 63. Kg5 Qd2+ 64. Kg4 Qxe2+ 65. Qf3 Qc4+ 66. Kh3 Nd3 $18) 61... Qe3+ 62. Kf6 Qd4+ 63. Ke6 (63. Kf7 Qd7+ 64. Kf6 Qd6+ 65. Kf7 Qd7+ 66. Kf6 Qd6+ 67. Kf7 Qd7+ $18) 63... Qe3+ 64. Kf6 $18) 56... e1=Q {[%emt 0:00:30]} 57. Bc4 {[%emt 0:00:11]} Qxg3 {[%emt 0:00:14]} 58. Rxc1 {[%emt 0:00:54][%cal Oc1e1] Intending Re1! and mate.} Qg7+ {[%emt 0:00:25]} 59. Ke6 {[%emt 0:00:19]} d2 {[%emt 0:01:42]} 60. Rd1 {[%emt 0:00:47]} Qc7 {[%emt 0:00:08] [#]} 61. Kxf6 $1 {[%emt 0:01:03]} Qd6+ {[%emt 0:00:29]} (61... Qg7+ 62. Ke6) 62. Be6 {[%emt 0:00:41] Qg8+ would kill now.} Qd4+ {[%emt 0:00:05]} 63. Kg5 {[%emt 0:00:31][%csl Ge6][%cal Ra8g8]} Qe3+ {[%emt 0:01:15]} 64. Kg4 {[%emt 0:00:15] White threatens Qg8+ and mate.} Qe2+ {[%emt 0:01:06]} 65. Qf3 {[%emt 0:00:06]} Qe1 {[%emt 0:00:31]} 66. Kh5 {[%emt 0:00:37]} Nc6 {[%emt 0:00:32] [#]} 67. Rxe1 $3 {[%emt 0:01:04]} dxe1=Q {[%emt 0:00:06]} 68. Qxc6 {[%emt 0:00:08] Weighted Error Value: White=0.39/Black=0.90} 1-0

[Event "Slovakian-ch Youth 2022"]
[Site "Lubovna"]
[Date "2022.05.25"]
[Round "6.2"]
[White "Gollner, Martin"]
[Black "Durana, Jonas"]
[Result "0-1"]
[ECO "B90"]
[WhiteElo "1585"]
[BlackElo "1644"]
[Annotator "NA RC COMBH"]
[PlyCount "92"]
[EventDate "2022.05.22"]
[EventCountry "SVK"]
[SourceTitle "playchess.com"]
[Source "ChessBase"]
[SourceQuality "1"]
[TimeControl "40/5400+30:1800+30"]

1. e4 {[%emt 0:10:04]} c5 {[%emt 0:00:01]} 2. Nf3 {[%emt 0:00:09]} d6 {[%emt 0:00:06]} 3. d4 {[%emt 0:00:05]} cxd4 {[%emt 0:00:19]} 4. Nxd4 {[%emt 0:00:04]} Nf6 {[%emt 0:00:03]} 5. Nc3 {[%emt 0:00:10]} a6 {[%emt 0:00:07]} 6. f3 {[%emt 0:00:26]} e5 {[%emt 0:01:34]} 7. Nb3 {[%emt 0:00:06]} Be6 {[%emt 0:00:03]} 8. Be3 {[%emt 0:00:26]} Nc6 {[%emt 0:00:07]} 9. Qd2 {[%emt 0:00:53]} Ne7 {[%emt 0:03:05]} 10. Bg5 {[%emt 0:08:16]} Rc8 {[%emt 0:02:56]} 11. Bxf6 {[%emt 0:02:26]} gxf6 {[%emt 0:00:16]} 12. O-O-O {[%emt 0:01:19]} Ng6 {[%emt 0:02:05]} 13. Nd5 {[%emt 0:05:47]} h5 {[%emt 0:01:21]} 14. Qb4 {[%emt 0:05:04]} Bxd5 {[%emt 0:00:41]} 15. Rxd5 {[%emt 0:00:34]} Qc7 {[%emt 0:01:10]} 16. c3 {[%emt 0:01:47]} Nf4 {[%emt 0:01:49]} 17. Rd1 {[%emt 0:00:09]} b5 {[%emt 0:04:52]} 18. Kb1 {[%emt 0:06:47]} h4 {[%emt 0:03:54]} 19. Qa5 {[%emt 0:03:58]} Qxa5 {[%emt 0:02:50]} 20. Nxa5 {[%emt 0:01:29]} Rc7 {[%emt 0:02:32]} 21. Rd2 {[%emt 0:08:11]} Rg8 {[%emt 0:00:56]} 22. c4 {[%emt 0:11:08]} b4 {[%emt 0:17:06]} 23. Kc2 {[%emt 0:07:40]} Be7 {[%emt 0:05:52]} 24. Kb3 {[%emt 0:07:35]} Kd7 {[%emt 0:00:58]} 25. Kxb4 {[%emt 0:01:21]} d5+ {[%emt 0:00:19]} 26. Kc3 {[%emt 0:00:16]} d4+ {[%emt 0:00:05]} 27. Kc2 {[%emt 0:00:03]} Bb4 {[%emt 0:00:19]} 28. Nb3 {[%emt 0:00:20]} Bxd2 {[%emt 0:00:20]} 29. Kxd2 {[%emt 0:00:24]} Ne6 {[%emt 0:04:09]} 30. Nc1 {[%emt 0:00:41]} Rb8 {[%emt 0:01:06]} 31. b3 {[%emt 0:01:48]} Nc5 {[%emt 0:03:09]} 32. g3 {[%emt 0:00:51]} Rcb7 {[%emt 0:00:53]} 33. g4 {[%emt 0:06:38]} a5 {[%emt 0:00:56]} 34. Be2 {[%emt 0:00:02]} a4 {[%emt 0:00:49]} 35. Bd1 {[%emt 0:00:01]} axb3 {[%emt 0:00:37]} 36. axb3 {[%emt 0:00:09]} Nxb3+ {[%emt 0:01:26]} 37. Nxb3 {[%emt 0:00:06]} Rxb3 {[%emt 0:00:04]} 38. Bxb3 {[%emt 0:00:02]} Rxb3 {[%emt 0:00:00]} 39. Ke2 {[%emt 0:08:55]} Rb2+ {[%emt 0:01:26]} 40. Kd3 {[%emt 0:00:31]} Rf2 {[%emt 0:00:11]} 41. Ra1 {[%emt 0:31:10]} Rxf3+ {[%emt 0:30:24]} 42. Ke2 {[%emt 0:02:43]} Rc3 {[%emt 0:01:42]} 43. Ra7+ {[%emt 0:00:30]} Ke8 {[%emt 0:00:40]} 44. Ra8+ {[%emt 0:00:02]} Ke7 {[%emt 0:00:11]} 45. Ra7+ {[%emt 0:00:01]} Kf8 {[%emt 0:00:15]} 46. Ra8+ {[%emt 0:00:02]} Kg7 {[%emt 0:00:11]} 0-1